Workbook

Sheet Лист1
A1: Школа | C1: МКОУ Борковская СОШ Маслянинский район ,Новосибирская область. | F1: Утвердил: | G1: должность | H1: Директор школы
A2: Типовое примерное меню приготавливаемых блюд | G2: фамилия | H2: Рылова Т.В.
A3: Возрастная категория | E3: 7-11 лет | G3: дата | J3: 2025
H4: день | I4: месяц | J4: год
A5: Неделя | B5: День недели | C5: Прием пищи | D5: Раздел меню | E5: Блюда | F5: Вес блюда, г | G5: Белки | H5: Жиры | I5: Углеводы | J5: Калорийность | K5: № рецептуры | L5: Цена
A6: 1 | B6: 1 | C6: Завтрак | D6: гор.блюдо
D8: гор.напиток
D9: хлеб
D10: фрукты
D13: итого | F13: =SUM(F6:F12) -> 0 | G13: =SUM(G6:G12) -> 0 | H13: 0 | I13: 0 | J13: 0 | L13: =SUM(L6:L12) -> 0
A14: =A6 -> 1 | B14: =B6 -> 1 | C14: Обед | D14: закуска
D15: 1 блюдо | E15: Суп с крупой гречка | F15: 250 | G15: 2.68 | H15: 2.8 | I15: 17.14 | J15: 104.5 | K15: 101 | L15: 7.95
D16: 2 блюдо | E16: Пельмени по-домашнему | F16: 100 | G16: 7.9 | H16: 14.8 | I16: 26.5 | J16: 271 | K16: 118 | L16: 46.57
D17: гарнир
D18: напиток | E18: Компот из меси сухофруктов. | F18: 200 | G18: 0.04 | H18: 0 | I18: 24.76 | J18: 94.2 | K18: 349 | L18: 4.8
D19: хлеб бел. | E19: Хлеб йодированный | F19: 50 | G19: 2 | H19: 0 | I19: 12 | J19: 66.25 | K19: 0 | L19: 3.7
D20: хлеб черн.
E21: чоко пай | F21: 30 | G21: 4.5 | H21: 16 | I21: 64 | J21: 410 | L21: 15
D23: итого | F23: =SUM(F14:F22) -> 630 | G23: =SUM(G14:G22) -> 17.12 | H23: 33.6 | I23: 144.4 | J23: 945.95 | L23: =SUM(L14:L22) -> 78.02
A24: =A6 -> 1 | B24: =B6 -> 1 | C24: Итого за день: | F24: =F13+F23 -> 630 | G24: =G13+G23 -> 17.12 | H24: 33.6 | I24: 144.4 | J24: 945.95 | L24: =L13+L23 -> 78.02
A25: 1 | B25: 2 | C25: Завтрак | D25: гор.блюдо
D27: гор.напиток
D28: хлеб
D29: фрукты
D32: итого | F32: =SUM(F25:F31) -> 0 | G32: =SUM(G25:G31) -> 0 | H32: =SUM(H25:H31) -> 0 | I32: =SUM(I25:I31) -> 0 | J32: =SUM(J25:J31) -> 0 | L32: 0
A33: =A25 -> 1 | B33: =B25 -> 2 | C33: Обед | D33: закуска | E33: Салат из свежей капусты | F33: 60 | G33: 0.85 | H33: 3.05 | I33: 5.19 | J33: 51.54 | K33: 45 | L33: 6.8
D34: 1 блюдо | E34: Суп с бобовыми(горох) | F34: 250 | G34: 5.49 | H34: 5.27 | I34: 16.54 | J34: 148.25 | K34: 102 | L34: 7.33
D35: 2 блюдо | E35: Пюре картофельное | F35: 150 | G35: 3.07 | H35: 0.02 | I35: 20,44, | J35: 137.45 | K35: 321 | L35: 15.5
D36: гарнир | E36: Тефтель "Ёжик" | F36: 100 | G36: 15.55 | H36: 11.55 | I36: 15.7 | J36: 228.75 | K36: 268 | L36: 46
D37: напиток | E37: Чай черный с сахаром | F37: 200 | G37: 0.2 | H37: 0 | I37: 14 | J37: 28 | K37: 943 | L37: 2.45
D38: хлеб бел. | E38: Хлеб йодированный | F38: 25 | G38: 4 | H38: 0 | I38: 24 | J38: 132 | K38: 0 | L38: 1.85
D39: хлеб черн.
D42: итого | F42: =SUM(F33:F41) -> 785 | G42: =SUM(G33:G41) -> 29.16 | H42: =SUM(H33:H41) -> 19.89 | I42: =SUM(I33:I41) -> 75.43 | J42: =SUM(J33:J41) -> 725.99 | L42: 79.93
A43: =A25 -> 1 | B43: =B25 -> 2 | C43: Итого за день: | F43: =F32+F42 -> 785 | G43: =G32+G42 -> 29.16 | H43: =H32+H42 -> 19.89 | I43: =I32+I42 -> 75.43 | J43: =J32+J42 -> 725.99 | L43: 79.93
A44: 1 | B44: 3 | C44: Завтрак | D44: гор.блюдо
D46: гор.напиток
D47: хлеб
D48: фрукты
D51: итого | F51: =SUM(F44:F50) -> 0 | G51: =SUM(G44:G50) -> 0 | H51: =SUM(H44:H50) -> 0 | I51: =SUM(I44:I50) -> 0 | J51: =SUM(J44:J50) -> 0 | L51: 0
A52: =A44 -> 1 | B52: =B44 -> 3 | C52: Обед | D52: закуска
D53: 1 блюдо | E53: Суп лапша | F53: 250 | G53: 2.69 | H53: 2.84 | I53: 17.14 | J53: 104.75 | K53: 208 | L53: 9.96
D54: 2 блюдо | E54: капуста тушеная с мясом | F54: 200 | G54: 3.7 | H54: 8.64 | I54: 46.03 | J54: 284.7 | K54: 336 | L54: 48.85
D55: гарнир
D56: напиток | E56: сок фрутовый (яблочный) | F56: 200 | G56: 1 | H56: 0 | I56: 18.2 | J56: 76 | K56: 445 | L56: 13.5
D57: хлеб бел.
D58: хлеб черн. | E58: Хлеб йодированный | F58: 50 | G58: 4 | H58: 0 | I58: 24 | J58: 132 | K58: 0 | L58: 3.7
E59: конфета шоколадная | F59: 15 | G59: 0.21 | H59: 1.05 | I59: 11.1 | J59: 54.75 | L59: 6.75
D61: итого | F61: =SUM(F52:F60) -> 715 | G61: =SUM(G52:G60) -> 11.6 | H61: 12.53 | I61: 116.47 | J61: 652.2 | L61: =SUM(L52:L60) -> 82.76
A62: =A44 -> 1 | B62: =B44 -> 3 | C62: Итого за день: | F62: =F51+F61 -> 715 | G62: =G51+G61 -> 11.6 | H62: =H51+H61 -> 12.53 | I62: =I51+I61 -> 116.47 | J62: =J51+J61 -> 652.2 | L62: 82.76
A63: 1 | B63: 4 | C63: Завтрак | D63: гор.блюдо
D65: гор.напиток
D66: хлеб
D67: фрукты
D70: итого | F70: =SUM(F63:F69) -> 0 | G70: =SUM(G63:G69) -> 0 | H70: =SUM(H63:H69) -> 0 | I70: =SUM(I63:I69) -> 0 | J70: =SUM(J63:J69) -> 0 | L70: 0
A71: =A63 -> 1 | B71: =B63 -> 4 | C71: Обед | D71: закуска | E71: Салат из зелёного горошка | F71: 0.04 | G71: 1.19 | H71: 2.08 | I71: 2.5 | J71: 33.44 | K71: 10 | L71: 8,75*
D72: 1 блюдо | E72: Суп свекольный | F72: 250 | G72: 1.6 | H72: 4.86 | I72: 8.56 | J72: 91.25 | K72: 81 | L72: 10.25
D73: 2 блюдо | E73: Плов из говядины | F73: 150 | G73: 25.38 | H73: 21.25 | I73: 44.61 | J73: 471.25 | K73: 304 | L73: 51.69
D74: гарнир
D75: напиток | E75: Компот из смеси сухофруктов. | F75: 200 | G75: 0.04 | H75: 0 | I75: 24.76 | J75: 94.2 | K75: 349 | L75: 4.8
D76: хлеб бел. | E76: Хлеб Йодированный | F76: 50 | G76: 4 | H76: 0 | I76: 24 | J76: 132 | K76: 0 | L76: 3.7
D77: хлеб черн.
D80: итого | F80: =SUM(F71:F79) -> 650.04 | G80: =SUM(G71:G79) -> 32.21 | H80: =SUM(H71:H79) -> 28.19 | I80: =SUM(I71:I79) -> 104.43 | J80: =SUM(J71:J79) -> 822.14 | L80: 79.19
A81: =A63 -> 1 | B81: =B63 -> 4 | C81: Итого за день: | F81: =F70+F80 -> 650.04 | G81: =G70+G80 -> 32.21 | H81: =H70+H80 -> 28.19 | I81: =I70+I80 -> 104.43 | J81: =J70+J80 -> 822.14 | L81: 79.19
A82: 1 | B82: 5 | C82: Завтрак | D82: гор.блюдо
D84: гор.напиток
D85: хлеб
D86: фрукты
D89: итого | F89: =SUM(F82:F88) -> 0 | G89: =SUM(G82:G88) -> 0 | H89: =SUM(H82:H88) -> 0 | I89: =SUM(I82:I88) -> 0 | J89: =SUM(J82:J88) -> 0 | L89: 0
A90: =A82 -> 1 | B90: =B82 -> 5 | C90: Обед | D90: закуска
D91: 1 блюдо | E91: Суп с рыбными консервами | F91: 250 | G91: 8.61 | H91: 8.4 | I91: 14.34 | J91: 167.25 | K91: 87 | L91: 19.66
D92: 2 блюдо | E92: каша гречневая | F92: 150 | G92: 5.75 | H92: 4.06 | I92: 25.76 | J92: 162.5 | K92: 302 | L92: 4.56
D93: гарнир | E93: Котлета мясная | F93: 100 | G93: 15.55 | H93: 11.55 | I93: 15.7 | J93: 228.75 | K93: 608 | L93: 46
D94: напиток | E94: компот из сухофруктов | F94: 200 | G94: 0.04 | H94: 0 | I94: 24.76 | J94: 94.2 | K94: 349 | L94: 4.8
D95: хлеб бел. | E95: хлеб йодированный | F95: 50 | G95: 4 | H95: 0 | I95: 24 | J95: 132 | K95: 0 | L95: 3.7
D96: хлеб черн.
E97: соус томатный | F97: 50 | G97: 0.32 | H97: 1.1 | I97: 2.08 | J97: 19.68
D99: итого | G99: =G91+G92+G93+G94+G95 -> 33.95 | H99: =H91+H92+H93+H94 -> 24.01 | I99: =I91+I92+I93+I94 -> 80.56 | J99: =J91+J92+J93+J94+J95 -> 784.7 | L99: 79.95
A100: =A82 -> 1 | B100: =B82 -> 5 | C100: Итого за день: | F100: =F89+F99 -> 0 | G100: =G89+G99 -> 33.95 | H100: =H89+H99 -> 24.01 | I100: =I89+I99 -> 80.56 | J100: =J89+J99 -> 784.7 | L100: 79.95
A101: 2 | B101: 1 | C101: Завтрак | D101: гор.блюдо
D103: гор.напиток
D104: хлеб
D105: фрукты
D108: итого | F108: =SUM(F101:F107) -> 0 | G108: =SUM(G101:G107) -> 0 | H108: 0 | I108: 0 | J108: 0 | L108: =SUM(L101:L107) -> 0
A109: =A101 -> 2 | B109: =B101 -> 1 | C109: Обед | D109: закуска | E109: нарезка овощная (огурец) | F109: 50 | G109: 9.64 | H109: 60.76 | I109: 36.46 | J109: 707 | K109: 24 | L109: 9
D110: 1 блюдо | E110: суп с крупой (пшено) | F110: 250 | G110: 6.39 | H110: 19.42 | I110: 34.25 | J110: 365 | K110: 81 | L110: 7.95
D111: 2 блюдо | E111: Макаронные изделия отварные | F111: 150 | G111: 13.16 | H111: 14 | I111: 86.9 | J111: 504 | K111: 309 | L111: 4.73
D112: гарнир | E112: тефтель "Ёжик" | F112: 100 | G112: 15.55 | H112: 11.55 | I112: 15.7 | J112: 228.75 | K112: 268 | L112: 46
D113: напиток | E113: чай черный с сахаром и лимоном | F113: 200 | G113: 9 | H113: 2.28 | I113: 15.42 | J113: 144.67 | K113: 377 | L113: 4.11
D114: хлеб бел. | E114: Хлеб йодироавнный | F114: 50 | G114: 4 | H114: 0 | I114: 24 | J114: 132 | K114: 0 | L114: 3,70*
D115: хлеб черн.
E116: соус томатный | F116: 50 | G116: 0.32 | H116: 1.1 | I116: 2.08 | J116: 19.68 | L116: 1.23
D118: итого | F118: =SUM(F109:F117) -> 850 | G118: =SUM(G109:G117) -> 58.06 | H118: 109.11 | I118: 214.81 | J118: 2101.1 | L118: 76.72
A119: =A101 -> 2 | B119: =B101 -> 1 | C119: Итого за день: | F119: =F108+F118 -> 850 | G119: =G108+G118 -> 58.06 | H119: =H108+H118 -> 109.11 | I119: =I108+I118 -> 214.81 | J119: =J108+J118 -> 2101.1 | L119: 76.72
A120: 2 | B120: 2 | C120: Завтрак | D120: гор.блюдо
D122: гор.напиток
D123: хлеб
D124: фрукты
D127: итого | F127: =SUM(F120:F126) -> 0 | G127: =SUM(G120:G126) -> 0 | H127: 0 | I127: 0 | J127: 0 | L127: =SUM(L120:L126) -> 0
A128: =A120 -> 2 | B128: =B120 -> 2 | C128: Обед | D128: закуска | E128: Салат со свежей капусты | F128: 50 | G128: 0.85 | H128: 3.05 | I128: 5.41 | J128: 52.44 | K128: 45 | L128: 6.8
D129: 1 блюдо | E129: Рассльник по-ленинградски | F129: 250 | G129: 6.55 | H129: 20.25 | I129: 45.22 | J129: 424 | K129: 94 | L129: 9.83
D130: 2 блюдо | E130: жаркое по-домашнему | F130: 250 | G130: 27.53 | H130: 7.47 | I130: 21.95 | J130: 265 | K130: 436 | L130: 48.9
D131: гарнир
D132: напиток | E132: сок фруктовый персиковый | F132: 200 | G132: 1 | H132: 0 | I132: 18.2 | J132: 76 | K132: 445 | L132: 13.5
D133: хлеб бел. | E133: Хлеб йодированный | F133: 50 | G133: 4 | H133: 0 | I133: 24 | J133: 132 | K133: 0 | L133: 3.7
D134: хлеб черн.
D137: итого | F137: =SUM(F128:F136) -> 800 | G137: =SUM(G128:G136) -> 39.93 | H137: 30.77 | I137: 114.78 | J137: 949.44 | L137: =SUM(L128:L136) -> 82.73
A138: =A120 -> 2 | B138: =B120 -> 2 | C138: Итого за день: | F138: =F127+F137 -> 800 | G138: =G127+G137 -> 39.93 | H138: =H127+H137 -> 30.77 | I138: =I127+I137 -> 114.78 | J138: =J127+J137 -> 949.44 | L138: 82.73
A139: 2 | B139: 3 | C139: Завтрак | D139: гор.блюдо
D141: гор.напиток
D142: хлеб
D143: фрукты
D146: итого | F146: =SUM(F139:F145) -> 0 | G146: =SUM(G139:G145) -> 0 | H146: 0 | I146: 0 | J146: 0 | L146: =SUM(L139:L145) -> 0
A147: =A139 -> 2 | B147: =B139 -> 3 | C147: Обед | D147: закуска | E147: Салат луковый | F147: 100 | G147: 0.86 | H147: 5.11 | I147: 2.61 | J147: 59.8 | K147: 17 | L147: 5.5
D148: 1 блюдо | E148: Щи со свежей капустой. | F148: 250 | G148: 1.76 | H148: 4.89 | I148: 5.9 | J148: 80 | K148: 87 | L148: 10.25
D149: 2 блюдо | E149: Макаронник | F149: 150 | G149: 14.38 | H149: 14.87 | I149: 15,50* | J149: 249.51 | K149: 285 | L149: 44.59
D150: гарнир
D151: напиток | E151: Сок фруктовый яблочный | F151: 200 | G151: 1 | H151: 0 | I151: 18.2 | J151: 76 | K151: 445 | L151: 13.5
D152: хлеб бел. | E152: Хлеб йодированный | F152: 50 | G152: 4 | H152: 0 | I152: 24 | J152: 132 | K152: 0 | L152: 3.7
D153: хлеб черн.
D156: итого | F156: =SUM(F147:F155) -> 750 | G156: =SUM(G147:G155) -> 22 | H156: =SUM(H147:H155) -> 24.87 | I156: =SUM(I147:I155) -> 50.71 | J156: =SUM(J147:J155) -> 597.31 | L156: =SUM(L147:L155) -> 77.54
A157: =A139 -> 2 | B157: =B139 -> 3 | C157: Итого за день: | F157: =F146+F156 -> 750 | G157: =G146+G156 -> 22 | H157: =H146+H156 -> 24.87 | I157: =I146+I156 -> 50.71 | J157: =J146+J156 -> 597.31 | L157: 77.54
A158: 2 | B158: 4 | C158: Завтрак | D158: гор.блюдо
D160: гор.напиток
D161: хлеб
D162: фрукты
D165: итого | F165: =SUM(F158:F164) -> 0 | G165: =SUM(G158:G164) -> 0 | H165: 0 | I165: 0 | J165: 0 | L165: =SUM(L158:L164) -> 0
A166: =A158 -> 2 | B166: =B158 -> 4 | C166: Обед | D166: закуска
D167: 1 блюдо | E167: Борщ со сметаной | F167: 250 | G167: 1.81 | H167: 4.91 | I167: 125.25 | J167: 102.5 | K167: 82 | L167: 11.6
D168: 2 блюдо | E168: Каша перловая | F168: 150 | G168: 2.32 | H168: 4.29 | I168: 20.5 | J168: 122.15 | K168: 84 | L168: 2.9
D169: гарнир | E169: Биточек | F169: 100 | G169: 15.55 | H169: 11.55 | I169: 15.7 | J169: 228.75 | K169: 608 | L169: 46
D170: напиток | E170: Компот из смеси сухофруктов | F170: 200/20 | G170: 0.04 | H170: 0 | I170: 24.76 | J170: 94.2 | K170: 349 | L170: 4.8
D171: хлеб бел. | E171: Хлеб йодированный | F171: 25 | G171: 4 | H171: 0 | I171: 24 | J171: 132 | K171: 0 | L171: 1.85
D172: хлеб черн.
E173: соус томатный | F173: 50 | G173: 0.32 | H173: 1.1 | I173: 2.08 | J173: 19.68 | L173: 1.23
E174: чоко пай | F174: 30 | G174: 4.5 | H174: 16 | I174: 64 | J174: 410 | L174: 15
D175: итого | F175: =SUM(F166:F174) -> 605 | G175: =SUM(G166:G174) -> 28.54 | H175: 37.85 | I175: 276.29 | J175: 1109.28 | L175: =SUM(L166:L174) -> 83.38
A176: =A158 -> 2 | B176: =B158 -> 4 | C176: Итого за день: | F176: =F165+F175 -> 605 | G176: =G165+G175 -> 28.54 | H176: =H165+H175 -> 37.85 | I176: =I165+I175 -> 276.29 | J176: =J165+J175 -> 1109.28 | L176: 83.38
A177: 2 | B177: 5 | C177: Завтрак | D177: гор.блюдо
D179: гор.напиток
D180: хлеб
D181: фрукты
D184: итого | F184: =SUM(F177:F183) -> 0 | G184: =SUM(G177:G183) -> 0 | H184: 0 | I184: 0 | J184: 0 | L184: =SUM(L177:L183) -> 0
A185: =A177 -> 2 | B185: =B177 -> 5 | C185: Обед | D185: закуска | E185: Винегрет | F185: 70 | G185: 0.82 | H185: 3.71 | I185: 5.06 | J185: 56.88 | K185: 67 | L185: 8.9
D186: 1 блюдо | E186: Суп картофельный с сухариками | F186: 250/5 | G186: 2 | H186: 2.5 | I186: 9 | J186: 90 | K186: 89 | L186: 7.95
D187: 2 блюдо | E187: Рис отварной | F187: 150 | G187: 2.4 | H187: 2.88 | I187: 25.02 | J187: 162.5 | K187: 302 | L187: 6.02
D188: гарнир | E188: котлета мясная | F188: 100 | G188: 15.55 | H188: 11.55 | I188: 15.7 | J188: 228.75 | K188: 608 | L188: 46
D189: напиток | E189: чай черный с сахаром | F189: 200/15 | G189: 0.2 | H189: 0 | I189: 14 | J189: 28 | K189: 943 | L189: 2.45
D190: хлеб бел. | E190: Хлеб йодированный | F190: 50 | G190: 4 | H190: 0 | I190: 24 | J190: 132 | K190: 0 | L190: 3.7
D191: хлеб черн.
E192: соус томатный | F192: 50 | G192: 0.32 | H192: 1.1 | I192: 2.08 | J192: 19.68 | L192: 1.23
D194: итого | F194: =SUM(F185:F193) -> 420 | G194: =SUM(G185:G193) -> 25.29 | H194: 21.74 | I194: 94.86 | J194: 717.81 | L194: =SUM(L185:L193) -> 76.25
A195: =A177 -> 2 | B195: =B177 -> 5 | C195: Итого за день: | F195: =F184+F194 -> 420 | G195: =G184+G194 -> 25.29 | H195: =H184+H194 -> 21.74 | I195: =I184+I194 -> 94.86 | J195: =J184+J194 -> 717.81 | L195: 76.25
C196: Среднее значение за период: | F196: =(F24+F43+F62+F81+F100+F119+F138+F157+F176+F195)/(IF(F24=0,0,1)+IF(F43=0,0,1)+IF(F62=0,0,1)+IF(F81=0,0,1)+IF(F100=0,0,1)+IF(F119=0,0,1)+IF(F138=0,0,1)+IF(F157=0,0,1)+IF(F176=0,0,1)+IF(F195=0,0,1)) -> 689.4488889 | G196: =(G24+G43+G62+G81+G100+G119+G138+G157+G176+G195)/(IF(G24=0,0,1)+IF(G43=0,0,1)+IF(G62=0,0,1)+IF(G81=0,0,1)+IF(G100=0,0,1)+IF(G119=0,0,1)+IF(G138=0,0,1)+IF(G157=0,0,1)+IF(G176=0,0,1)+IF(G195=0,0,1)) -> 29.786 | H196: 34.256 | I196: 127.274 | J196: 940.592 | L196: =(L24+L43+L62+L81+L100+L119+L138+L157+L176+L195)/(IF(L24=0,0,1)+IF(L43=0,0,1)+IF(L62=0,0,1)+IF(L81=0,0,1)+IF(L100=0,0,1)+IF(L119=0,0,1)+IF(L138=0,0,1)+IF(L157=0,0,1)+IF(L176=0,0,1)+IF(L195=0,0,1)) -> 79.647
